{"text_format":"1","workbook":"xlsx","n_sheets":6,"sheets":["CARACTERIZAÇÃO","ORÇAMENTO","DR e BALANÇO","Referências","legenda","Base de dados"],"not_rendered":{"charts":0,"images":4,"macros":0,"external_links":2,"defined_names":19,"comments":0,"pivot_tables":0},"unopened":[],"bounds":{"document_bytes":16777216,"sheet_cells":100000,"rows_first":2000,"rows_last":500,"rows_between":2000,"halvings":0,"cell_chars":16384,"cell_head_chars":4096},"cells_cut":0,"cells_raw":0,"read":"whole","date_system":"1900"}

{"sheet":"CARACTERIZAÇÃO","index":0,"n_rows":343,"n_cols":16,"rows_kept":343,"cut":false,"hidden":false,"merged":[[6,6,6,7],[6,8,6,9],[125,9,125,10],[126,9,126,10],[127,9,127,10],[128,9,128,10],[129,9,129,10],[120,9,120,10],[121,9,121,10],[122,9,122,10],[123,9,123,10],[124,9,124,10],[169,1,192,15],[194,1,194,12],[123,4,123,5],[124,4,124,5],[130,11,130,14],[126,6,126,7],[127,6,127,7],[128,6,128,7],[129,6,129,7],[130,6,130,7],[123,6,123,7],[124,6,124,7],[130,9,130,10],[131,2,131,14],[123,11,123,14],[124,11,124,14],[125,11,125,14],[126,11,126,14],[127,11,127,14],[128,11,128,14],[129,11,129,14],[125,6,125,7],[139,1,139,12],[130,2,130,3],[120,2,120,3],[121,2,121,3],[122,2,122,3],[123,2,123,3],[124,2,124,3],[140,1,140,12],[167,1,167,12],[120,6,120,7],[121,6,121,7],[122,6,122,7],[120,11,120,14],[121,11,121,14],[122,11,122,14],[127,4,127,5],[128,4,128,5],[129,4,129,5],[127,2,127,3],[128,2,128,3],[130,4,130,5],[125,4,125,5],[126,4,126,5],[125,2,125,3],[126,2,126,3],[129,2,129,3],[6,12,6,13],[6,3,6,4],[13,1,13,15],[10,9,11,15],[12,1,12,15],[120,4,120,5],[121,4,121,5],[122,4,122,5],[343,1,366,15],[221,1,221,12],[223,1,246,15],[6,14,6,15],[51,1,114,15],[14,1,45,15],[339,10,339,12],[340,10,340,12],[305,1,306,15],[340,1,340,2],[336,1,337,15],[308,1,308,12],[135,1,135,8],[196,1,219,15],[1,1,2,4],[1,5,2,6],[250,1,250,12],[278,1,278,12],[142,1,165,15],[335,1,335,12],[280,1,303,15],[310,1,333,15],[340,7,340,8],[339,5,339,6],[340,5,340,6],[339,3,339,4],[340,3,340,4],[339,7,339,8],[50,1,50,15],[252,1,275,15],[117,1,117,8],[48,1,48,15],[137,1,137,15],[4,3,4,15],[6,1,6,2],[4,1,4,2],[9,1,9,2],[9,7,9,8]]}
[]
[null,"Sistema de Incentivos SI2E"]
[]
[]
[null,"Beneficiário (Empresa)"]
[]
[null,"Dimensão da empresa",null,null,null,null,"Forma jurídica da empresa",null,null,null,null,null,"Data de início de atividade"]
[]
[null,null,null,"Nº Homens","Nº Mulheres",null,null,null,null,"Homens","Mulheres"]
[null,"Órgãos de direção/administração/gestão",null,null,null,null,null,"Salário médio*"]
[null,null,null,null,null,null,null,null,null,"* Se necessário, poderá vir a ser solicitado ao beneficiário comprovativo desta informação \n(ex.: mapa de remunerações do pessoal, por categoria)"]
[]
[null,"I - Caracterização do beneficiário"]
[null,"Breve historial da empresa (quando aplicável) assinalando:\n(i) O perfil dos seus sócios/fundadores, alterações ao capital social, participações e relações de grupo da empresa; (ii) Os pontos chave na evolução da sua atividade; (iii) Meios técnicos, físicos e humanos da empresa;(iv) Os principais pontos fortes e pontos fracos da empresa face aos seus concorrentes; (v) Principais clientes (máx 3000 carateres)"]
[]
[]
[]
[]
[]
[]
[]
[]
[]
[]
[]
[]
[]
[]
[]
[]
[]
[]
[]
[]
[]
[]
[]
[]
[]
[]
[]
[]
[]
[]
[]
[]
[]
[]
[null,"II - Caraterização do projeto"]
[]
[null,"Descrição do projeto, integrando os seguintes pontos: \ni) Identificação dos objetivos gerais e específicos, ii) Mercado alvo, clientes, iii) Grau de inovação e diferenciação, designadamente territorial, iv) cumprimento do principio de igualdade de oportunidades\nDeverá ser indicado de forma clara se se trata de um projeto de criação, expansão ou modernização. (máx 3000 carateres)"]
[]
[]
[]
[]
[]
[]
[]
[]
[]
[]
[]
[]
[]
[]
[]
[]
[]
[]
[]
[]
[]
[]
[]
[]
[]
[]
[]
[]
[]
[]
[]
[]
[]
[]
[]
[]
[]
[]
[]
[]
[]
[]
[]
[]
[]
[]
[]
[]
[]
[]
[]
[]
[]
[]
[]
[]
[]
[]
[]
[]
[]
[]
[]
[]
[]
[]
[null,"N.º de postos de trabalhos antes da apresentação da candidatura (Pré-projeto)"]
[]
[null,"Postos de trabalho a criar no âmbito do projeto*:"]
[null,null,"Situação",null,"Tipo de contrato",null,"Duração do contrato (meses)",null,"Género","Nível de Qualificação (QNQ)",null,"Situação de Carência "]
[null,"PT 1"]
[null,"PT 2"]
[null,"PT 3"]
[null,"PT 4"]
[null,"PT 5"]
[null,"PT 6"]
[null,"PT 7"]
[null,"PT 8"]
[null,"PT 9"]
[null,"PT 10"]
[null,null,"N.º total de postos de trabalho a criar",null,null,null,null,null,null,null,null,null,null,null,null,{"$f":"SUM(P122:P131)","v":0}]
[null,"* Dados previsionais. Se necessário, poderá inserir novas linhas"]
[]
[]
[null,"Pessoas apoiadas no âmbito da criação de emprego, incluindo autoemprego, que permanecem 12 meses após o fim do apoio"]
[]
[null,"III - Auto-avaliação / Critérios de seleção"]
[]
[null,"1 - RELEVÂNCIA DOS PROJETOS, FACE AO DIAGNÓSTICO DA SITUAÇÃO DE PARTIDA E AO PRINCÍPIO DA ADICIONALIDADE, A SUA COERÊNCIA INTERNA, ESTIMATIVA DOS CUSTOS E RECURSOS ENVOLVIDOS, INDICADORES DE REALIZAÇÃO E RESULTADO E SUA ARTICULAÇÃO COM AS AÇÕES A DESENVOLVER."]
[null,"1.1. Características e atributos do empreendedor"]
[null,"Justificação: (máx 1500 carateres)"]
[]
[]
[]
[]
[]
[]
[]
[]
[]
[]
[]
[]
[]
[]
[]
[]
[]
[]
[]
[]
[]
[]
[]
[]
[]
[null,"1.2. Qualidade do projeto"]
[null,"Justificação: (máx 1500 carateres)"]
[]
[]
[]
[]
[]
[]
[]
[]
[]
[]
[]
[]
[]
[]
[]
[]
[]
[]
[]
[]
[]
[]
[]
[]
[]
[null,"1.3. Capacidade de financiamento"]
[null,"Justificação: (máx 1500 carateres)"]
[]
[]
[]
[]
[]
[]
[]
[]
[]
[]
[]
[]
[]
[]
[]
[]
[]
[]
[]
[]
[]
[]
[]
[]
[]
[null,"2 - Efeito dos projetos sobre a sustentabilidade do emprego relativamente a grupos especialmente carenciados (desempregados, desfavorecidos e inativos)."]
[null,"Justificação: Atender aos postos de trabalho identificados no ponto II supra (máx 1500 carateres)"]
[]
[]
[]
[]
[]
[]
[]
[]
[]
[]
[]
[]
[]
[]
[]
[]
[]
[]
[]
[]
[]
[]
[]
[]
[]
[]
[]
[null,"3 - Contributos dos projetos para a concretização dos indicadores de realização e de resultado dos objetivos específicos do Programa Operacional"]
[null,"Justificação: Atender aos postos de trabalho identificados no ponto II supra e indicar as funções que vão ser desempenhadas pelos RH a contratar (máx 1500 carateres)"]
[]
[]
[]
[]
[]
[]
[]
[]
[]
[]
[]
[]
[]
[]
[]
[]
[]
[]
[]
[]
[]
[]
[]
[]
[]
[]
[null,"4 - Grau de inovação dos projetos – nos processo, nos produtos e serviços - face ao histórico e ao contexto sectorial e territorial "]
[null,"Justificação: (máx 1500 carateres)"]
[]
[]
[]
[]
[]
[]
[]
[]
[]
[]
[]
[]
[]
[]
[]
[]
[]
[]
[]
[]
[]
[]
[]
[]
[]
[null,"5. ALINHAMENTO DOS PROJETOS COM PLANOS DE AÇÃO E OUTROS INSTRUMENTOS DE POLÍTICA TERRITORIAL E SECTORIAL, NOMEADAMENTE OS PACTOS DE DESENVOLVIMENTO E COESÃO TERRITORIAL E A ESTRATÉGIA DE ESPECIALIZAÇÃO INTELIGENTE DA REGIÃO DO NORTE. "]
[]
[]
[null,"5.1. Alinhamento do projeto com o Pacto de Desenvolvimento e Coesão Territorial da NUTS III em que se realiza "]
[null,"Justificação: (máx 1500 carateres)"]
[]
[]
[]
[]
[]
[]
[]
[]
[]
[]
[]
[]
[]
[]
[]
[]
[]
[]
[]
[]
[]
[]
[]
[]
[]
[]
[null,"5.2 - Alinhamento dos projetos com a Estratégia de Especialização inteligente da Região do Norte\nO alinhamento dos projetos com a Estratégia de Especialização Inteligente (RIS3) é avaliado em função do respetivo racional, nos termos constantes do documento “Norte 2020 Estratégia Regional de Especialização Inteligente”, anexo ao Aviso. O beneficiário deverá escolher apenas um dos domínios. Caso o projeto esteja alinhado com vários domínios, deverá optar-se pelo domínio preponderante. Deve ainda assinalar se o projeto integra uma Estratégia de Eficiência Coletiva PROVERE (em caso afirmativo, se a EEC PROVERE não estiver ainda aprovada, deve anexar declaração comprovativa emitida pelo líder do Consórcio em causa)."]
[]
[]
[null,null,null,"Nuclear",null,"Emergente",null,"Wild-Card",null,null,"Estratégia PROVERE"]
[null,"Domínio aplicável ao projeto"]
[]
[null,"Justificação: (máx 1500 carateres)"]

{"sheet":"ORÇAMENTO","index":1,"n_rows":64,"n_cols":15,"rows_kept":64,"cut":false,"hidden":false,"merged":[[63,0,63,14],[0,0,1,4],[0,5,1,14],[7,10,7,12],[7,13,8,13],[7,14,8,14],[7,0,8,0],[7,1,8,1],[7,2,8,2],[7,3,8,3],[7,4,7,6],[7,7,7,9]]}
["Sistema de Incentivos SI2E"]
[]
[]
["Orçamento"]
[]
[]
[null,null,null,null,null,null,null,null,null,null,null,null,null,null,"Unidade: Euro"]
["Componente\n(Sistema de Informação)","Despesas Elegíveis \n(nº 1 do artigo 10º do SI2E)","Descrição da despesas","Ano da despesa","Valor do Investimento Total (sem IVA)",null,null,"IVA",null,null,"Valor de Investimento Total (com IVA)",null,null,"Método de Cálculo","Documento de Suporte"]
[null,null,null,null,"Elegível","Não Elegível","Total","Elegível","Não Elegível","Total","Elegível c/ IVA","Não Elegível","Total"]
["(1)","(2)","(3)",null,null,null,null,null,null,null,null,null,null,"(4)","(5)"]
[null,null,null,null,null,null,{"$f":"E11+F11","v":0},null,null,{"$f":"H11+I11","v":0},{"$f":"+E11+H11","v":0},{"$f":"+F11+I11","v":0},{"$f":"+G11+J11","v":0}]
[null,null,null,null,null,null,0,null,null,0,0,0,0]
[null,null,null,null,null,null,0,null,null,0,0,0,0]
[null,null,null,null,null,null,0,null,null,0,0,0,0]
[null,null,null,null,null,null,0,null,null,0,0,0,0]
[null,null,null,null,null,null,0,null,null,0,0,0,0]
[null,null,null,null,null,null,0,null,null,0,0,0,0]
[null,null,null,null,null,null,0,null,null,0,0,0,0]
[null,null,null,null,null,null,0,null,null,0,0,0,0]
[null,null,null,null,null,null,0,null,null,0,0,0,0]
[null,null,null,null,null,null,0,null,null,0,0,0,0]
[null,null,null,null,null,null,0,null,null,0,0,0,0]
[null,null,null,null,null,null,0,null,null,0,0,0,0]
[null,null,null,null,null,null,0,null,null,0,0,0,0]
[null,null,null,null,null,null,0,null,null,0,0,0,0]
[null,null,null,null,null,null,0,null,null,0,0,0,0]
[null,null,null,null,null,null,0,null,null,0,0,0,0]
[null,null,null,null,null,null,0,null,null,0,0,0,0]
[null,null,null,null,null,null,0,null,null,0,0,0,0]
[null,null,null,null,null,null,0,null,null,{"$f":"H30+I30","v":0},{"$f":"+E30+H30","v":0},0,0]
[null,null,null,null,null,null,0,null,null,{"$f":"H31+I31","v":0},0,0,0]
[null,null,null,null,null,null,0,null,null,{"$f":"H32+I32","v":0},0,0,0]
[null,null,null,null,null,null,0,null,null,{"$f":"H33+I33","v":0},{"$f":"+E33+H33","v":0},{"$f":"+F33+I33","v":0},{"$f":"+G33+J33","v":0}]
[null,null,null,null,null,null,0,null,null,0,0,0,0]
[null,null,null,null,null,null,0,null,null,0,0,0,0]
[null,null,null,null,null,null,0,null,null,0,0,0,0]
[null,null,null,null,null,null,0,null,null,0,0,0,0]
[null,null,null,null,null,null,0,null,null,0,0,0,0]
[null,null,null,null,null,null,0,null,null,0,0,0,0]
[null,null,null,null,null,null,0,null,null,{"$f":"H40+I40","v":0},{"$f":"+E40+H40","v":0},{"$f":"+F40+I40","v":0},{"$f":"+G40+J40","v":0}]
[null,null,null,null,null,null,0,null,null,0,0,0,0]
[null,null,null,null,null,null,0,null,null,0,0,0,0]
[null,null,null,null,null,null,0,null,null,0,0,0,0]
[null,null,null,null,null,null,0,null,null,0,0,0,0]
[null,null,null,null,null,null,0,null,null,0,0,0,0]
[null,null,null,null,null,null,0,null,null,0,0,0,0]
[null,null,null,null,null,null,0,null,null,0,0,0,0]
[null,null,null,null,null,null,0,null,null,0,0,0,0]
[null,null,null,null,null,null,0,null,null,0,0,0,0]
[null,null,null,null,null,null,0,null,null,0,0,0,0]
[null,null,null,null,null,null,0,null,null,0,0,0,0]
[null,null,null,null,null,null,0,null,null,0,0,0,0]
[null,null,null,null,null,null,0,null,null,0,0,0,0]
[null,null,null,null,null,null,0,null,null,0,0,0,0]
[null,null,null,null,null,null,0,null,null,0,0,0,0]
[null,null,null,null,null,null,0,null,null,0,0,0,0]
["TOTAL",null,null,null,{"$f":"SUM(E11:E56)","v":0},0,0,0,0,0,0,0,0]
[]
["NOTAS:"]
["(1) A informação a registar nesta coluna respeita as rubricas identificadas na estrutura de custos do formulário do BALCAO2020"]
["(2) A informação a registar nesta coluna respeita tipologias de despesas identificadas no nº 1 do artigo 10º do SI2E"]
["(3) Breve descrição do Investimento"]
["(4) Explicitar o método de cálculo utilizado, quando não esteja incluído nos documentos de suporte (preço unitário, quantidade, coeficiente de imputação, etc.). "]
["(5) Identificar os documentos de correspondentes (orçamentos, faturas proforma ou caderno de encargos). Esta documentação deverá ser arquivada no dossiê da operação da responsabilidade do beneficiário. Em sede de análise da candidatura, a entidade gestora poderá solicitar a apresentação destes comprovativos."]

{"sheet":"DR e BALANÇO","index":2,"n_rows":129,"n_cols":9,"rows_kept":129,"cut":false,"hidden":false,"merged":[[129,1,130,8],[1,1,2,1],[1,2,2,8],[118,5,119,5],[118,6,119,6],[118,7,119,7],[118,8,119,8],[118,2,119,2],[118,3,119,3],[118,4,119,4],[40,1,41,8],[111,1,112,8]]}
[]
[null,"Sistema de Incentivos SI2E"]
[]
[]
[]
[null,"Demostração de Resultados Histórico e Previsional"]
[]
[null,"Rubricas",2015,2016,2017,2018,2019,2020,2021]
[null," Vendas e serviços prestados"]
[null," Subsídios à exploração"]
[null," Ganhos/perdas imputados de subsidiárias, associadas a empreendimentos conjuntos"]
[null," Variação nos inventários da produção"]
[null," Trabalhos para a própria entidade"]
[null," Custo das mercadorias vendidas e das matérias consumidas"]
[null," Fornecimentos e serviços externos"]
[null," Gastos com o pessoal"]
[null," Imparidade de inventários (perdas/reversões)"]
[null," Imparidade de dívidas a receber (perdas/reversões)"]
[null," Provisões (aumentos/reduções)"]
[null," Imparidade de investimentos não depreciáveis/amortizáveis (perdas/reversões)"]
[null," Outras imparidades (perdas/reversões) / Imparidades (perdas/reversões) (*)"]
[null," Aumentos/reduções de justo valor"]
[null," Outros rendimentos e ganhos"]
[null,"      Rendimentos suplementares"]
[null,"      Outros"]
[null," Outros gastos e perdas"]
[null,"      Impostos indiretos"]
[null,"      Outros"]
[null," Resultado antes de depreciações, gastos de financiamento e impostos"]
[null," Gastos/reversões de depreciação e de amortização"]
[null," Imparidade de Investimentos depreciáveis/amortizáveis (perdas/reversões)"]
[null," Resultado operacional (antes de gastos de financiamento e impostos)"]
[null," Juros e rendimentos similares obtidos"]
[null," Juros e gastos similares suportados"]
[null," Resultado antes de impostos"]
[null," Imposto sobre o rendimento do período"]
[null," Resultado líquido do período"]
[null," Resultado das atividades descontinuadas (líquido de impostos) incluído no resultado líquido do período"]
[null,"* apenas para micro e pequenas empresas"]
[null,"Observações (pressupostos e outra informação relevante sobre o plano de negócios que permita interpretar os dados disponibilizados) - máx 1500 carateres:"]
[]
[]
[]
[null,"Balanço Históricos e Previsionais"]
[]
[null,"                                               ATIVO",2015,2016,2017,2018,2019,2020,2021]
[null," Ativo não corrente",{"$f":"SUM(C48:C58)","v":0},{"$f":"SUM(D48:D58)","v":0},0,0,0,0,0]
[null,"    Ativos fixos tangíveis"]
[null,"    Propriedades de investimento"]
[null,"    Goodwill"]
[null,"    Ativos intangíveis"]
[null,"    Ativos biológicos"]
[null,"    Participações financeiras - método da equivalência patrimonial"]
[null,"    Participações financeiras - outros métodos"]
[null,"    Acionistas/sócios"]
[null,"    Outros ativos financeiros"]
[null,"    Ativos por impostos diferidos"]
[null,"    Investimentos financeiros (*)"]
[null," Ativo corrente",{"$f":"SUM(C60:C72)","v":0},{"$f":"SUM(D60:D72)","v":0},0,0,0,0,0]
[null,"    Inventários"]
[null,"    Ativos biológicos"]
[null,"    Clientes"]
[null,"    Adiantamentos a fornecedores"]
[null,"    Estado e outros entes públicos"]
[null,"    Acionistas/sócios"]
[null,"    Outras contas a receber"]
[null,"    Diferimentos"]
[null,"    Ativos financeiros detidos para negociação"]
[null,"    Outros ativos financeiros"]
[null,"    Ativos não correntes detidos para venda"]
[null,"    Outros ativos correntes"]
[null,"    Caixa e depósitos bancários"]
[null," TOTAL DO ATIVO",{"$f":"C59+C47","v":0},{"$f":"D59+D47","v":0},0,0,0,0,0]
[null,"                                CAPITAL PRÓPRIO E PASSIVO"]
[null," Capital realizado"]
[null," Ações (quotas) próprias"]
[null," Outros instrumentos de capital próprio"]
[null," Prémios de emissão"]
[null," Reservas legais"]
[null," Outras reservas"]
[null," Resultados transitados"]
[null," Ajustamentos em ativos financeiros"]
[null," Excedentes de revalorização"]
[null," Outras variações no capital próprio"]
[null," Resultado líquido do período"]
[null," Interesses minoritários"]
[null," Dividendos antecipados"]
[null," TOTAL DO CAPITAL PRÓPRIO",{"$f":"SUM(C75:C87)","v":0},{"$f":"SUM(D75:D87)","v":0},0,0,0,0,0]
[null,"                                                 PASSIVO"]
[null," Passivo não corrente",{"$f":"SUM(C91:C95)","v":0},{"$f":"SUM(D91:D95)","v":0},0,0,0,0,0]
[null,"    Provisões"]
[null,"    Financiamentos obtidos"]
[null,"    Responsabilidades por benefícios pós-emprego"]
[null,"    Passivos por impostos diferidos"]
[null,"    Outras contas a pagar"]
[null," Passivo corrente",{"$f":"SUM(C97:C107)","v":0},{"$f":"SUM(D97:D107)","v":0},{"$f":"SUM(E97:E107)","v":0},{"$f":"SUM(F97:F107)","v":0},{"$f":"SUM(G97:G107)","v":0},0,0]
[null,"    Fornecedores"]
[null,"    Adiantamentos de clientes"]
[null,"    Estado e outros entes públicos"]
[null,"    Acionistas/sócios"]
[null,"    Financiamentos obtidos"]
[null,"    Outras contas a pagar"]
[null,"    Diferimentos"]
[null,"    Passivos financeiros detidos para negociação"]
[null,"    Outros passivos financeiros"]
[null,"    Passivos não correntes detidos para venda"]
[null,"    Outros passivos correntes"]
[null," TOTAL DO PASSIVO",{"$f":"C96+C90","v":0},{"$f":"D96+D90","v":0},0,0,0,0,0]
[null," TOTAL DO CAPITAL PRÓPRIO + PASSIVO",{"$f":"C88+C108","v":0},{"$f":"D88+D108","v":0},0,0,0,0,0]
[]
[null,"Observações (pressupostos e outra informação relevante sobre o plano de negócios que permita interpretar os dados disponibilizados) - máx 1500 carateres:"]
[]
[]
[]
[]
[]
[null,"Indicadores"]
[]
[null,"Indicador",2015,2016,2017,2018,2019,2020,2021]
[]
[null,"Volume de Negócios",{"$f":"'DR e BALANÇO'!C9","v":0},{"$f":"'DR e BALANÇO'!D9","v":0},{"$f":"'DR e BALANÇO'!E9","v":0},{"$f":"'DR e BALANÇO'!F9","v":0},{"$f":"'DR e BALANÇO'!G9","v":0},{"$f":"'DR e BALANÇO'!H9","v":0},{"$f":"'DR e BALANÇO'!I9","v":0}]
[null,"Ativo",{"$f":"'DR e BALANÇO'!C73","v":0},{"$f":"'DR e BALANÇO'!D73","v":0},{"$f":"'DR e BALANÇO'!E73","v":0},{"$f":"'DR e BALANÇO'!F73","v":0},{"$f":"'DR e BALANÇO'!G73","v":0},{"$f":"'DR e BALANÇO'!H73","v":0},{"$f":"'DR e BALANÇO'!I73","v":0}]
[null,"Capital Próprio",{"$f":"'DR e BALANÇO'!C88","v":0},{"$f":"'DR e BALANÇO'!D88","v":0},{"$f":"'DR e BALANÇO'!E88","v":0},{"$f":"'DR e BALANÇO'!F88","v":0},{"$f":"'DR e BALANÇO'!G88","v":0},{"$f":"'DR e BALANÇO'!H88","v":0},{"$f":"'DR e BALANÇO'!I88","v":0}]
[null,"Passivo",{"$f":"'DR e BALANÇO'!C108","v":0},{"$f":"'DR e BALANÇO'!D108","v":0},{"$f":"'DR e BALANÇO'!E108","v":0},{"$f":"'DR e BALANÇO'!F108","v":0},{"$f":"'DR e BALANÇO'!G108","v":0},{"$f":"'DR e BALANÇO'!H108","v":0},{"$f":"'DR e BALANÇO'!I108","v":0}]
[null,"Resultado Operacional",{"$f":"+C32","v":0},0,0,0,0,0,0]
[null,"Resultado antes de Impostos",{"$f":"'DR e BALANÇO'!C35","v":0},{"$f":"'DR e BALANÇO'!D35","v":0},{"$f":"'DR e BALANÇO'!E35","v":0},{"$f":"'DR e BALANÇO'!F35","v":0},{"$f":"'DR e BALANÇO'!G35","v":0},{"$f":"'DR e BALANÇO'!H35","v":0},{"$f":"'DR e BALANÇO'!I35","v":0}]
[null,"Resultado Líquido",{"$f":"'DR e BALANÇO'!C37","v":0},{"$f":"'DR e BALANÇO'!D37","v":0},{"$f":"'DR e BALANÇO'!E37","v":0},{"$f":"'DR e BALANÇO'!F37","v":0},{"$f":"'DR e BALANÇO'!G37","v":0},{"$f":"'DR e BALANÇO'!H37","v":0},{"$f":"'DR e BALANÇO'!I37","v":0}]
[null,"Autonomia Financeira (%)",{"$f":"C123/C122","v":{"$error":"#DIV/0!"}},{"$f":"D123/D122","v":{"$error":"#DIV/0!"}},{"$error":"#DIV/0!"},{"$error":"#DIV/0!"},{"$error":"#DIV/0!"},{"$error":"#DIV/0!"},{"$error":"#DIV/0!"}]
[null,"Observações (pressupostos e outra informação relevante sobre o plano de negócios que permita interpretar os dados disponibilizados) - máx 1500 carateres:"]

{"sheet":"Referências","index":3,"n_rows":55,"n_cols":6,"rows_kept":55,"cut":false,"hidden":false,"merged":[]}
[null,"Forma jurídica da empresa"]
[null,"Empresário em Nome Individual."]
[null,"Sociedade Unipessoal por Quotas"]
[null,"Estabelecimento Individual de Responsabilidade Limitada"]
[null,"Sociedade por Quotas"]
[null,"Sociedade Anónima"]
[null,"Sociedade em Nome Coletivo"]
[null,"Sociedade em Comandita"]
[null,"Cooperativa"]
[]
[null,"Nuclear","Emergente","Wild-Card",null,"PROVERE"]
[null,"Cultura, criação e moda","Ciências da vida e saúde ","Recursos do mar e economia",null,"Enquadrado"]
[null,"Indústrias da mobilidade e ambiente","Capital simbólico, tecnologias e serviços do turismo","Capital humano e serviços especializados\n",null,"Não enquadrado"]
[null,"Sistemas agroambientais e alimentação","Não enquadrado","Não enquadrado"]
[null,"Sistemas avançados de produção"]
[null,"Não enquadrado"]
[]
[]
[null,"Situação"]
[null,"Criação do próprio emprego"]
[null,"Desempregados inscritos há mais de 6 meses no IEFP"]
[null,"Jovens até 30 anos à procura do primeiro emprego inscritos no IEFP"]
[null,"Outros situações"]
[]
[]
[]
[null,"Situação de carência"]
[null,"Inscrito há, pelo menos, 6 meses consecutivos, com menos de 29 anos de idade ou mais de 45"]
[null,"Inscrito há, pelo menos, 6 meses consecutivos, sem registos de contribuições na Segurança Social nos 12 meses anteriores"]
[null,"Beneficiário de prestações de desemprego ou Rendimento Social de Inserção (RSI)"]
[null,"Pessoa com deficiência ou incapacidade"]
[null,"Pessoa que integre família monoparental ou cujo cônjuge se encontre também em situação de desemprego (inscrito no IEFP)"]
[null,"Vítima de violência doméstica"]
[null,"Refugiado"]
[null,"Ex-recluso e aquele que cumpra ou tenha cumprido penas não privativas de liberdade em condições de se inserir na vida ativa"]
[null,"Toxicodependente em recuperação."]
[]
[null,"Tipo de contrato"]
[null,"Com termo"]
[null,"Sem termo"]
[]
[null,"Género"]
[null,"Masculino"]
[null,"Feminino"]
[]
[null,"Nível de Qualificação (QNQ)"]
[null,"Sem Qualificação"]
[null,"Nível 1"]
[null,"Nível 2"]
[null,"Nível 3"]
[null,"Nível 4 "]
[null,"Nível 5"]
[null,"Nível 6"]
[null,"Nível 7"]
[null,"Nível 8"]

{"sheet":"legenda","index":4,"n_rows":50,"n_cols":15,"rows_kept":50,"cut":false,"hidden":true,"merged":[[0,2,0,3],[0,5,0,6],[1,10,6,10],[1,12,6,12],[7,10,11,10],[7,12,11,12],[25,10,27,10],[25,12,27,12],[12,10,17,10],[12,12,17,12],[18,10,20,10],[18,12,20,12],[21,10,24,10],[21,12,24,12]]}
["Dimensão empresa",null,"Componentes FEDER/FC",null,null,"Despesas Elegíveis - nº 1 do artigo 10",null,null,null,null,null,"Linhas de ação","Atividades Prioritárias","Atividades Prioritárias"]
["Micro-empresa",null,1,"Despesas com Pessoal",null,"a)","Custos de aquisição de máquinas, equipamentos, respetiva instalação e transporte",null,"Sim",null,"Turismo","Qualificação e diferenciação dos produtos consolidados (ex: sol e mar, golfe, residencial)",". Hotelaria, com prioridade para os produtos complementares e em desenvolvimento\n. Produtos locais diferenciados \n. Animação Turística\n. Eventos internacionais com capacidade de atenuar a sazonalidade;\n. Património natural e cultural\n. Serviços e infraestruturas coletivas (com destaque para os associados à inovação e à internacionalização)\n. Outras atividades que se enquadrem na prioridade temática\n. Animação turística assente em produtos locais\n. Capacitação das PME (com destaque para a presença na web, a economia digital e as TIC, a certificação de serviços, a criaçãode marcas e design, o marketing internacional)\n. Sustentabilidade (consumir e produzir de forma sustentável)\n. Qualificação dos recursos humanos","Hotelaria, com prioridade para os produtos complementares e em desenvolvimento","Turismo"]
["Pequena empresa",null,2,"Aquisição de bens",null,"b)","Custos de aquisição de equipamentos informáticos, incluindo o software necessário ao seu funcionamento",null,"Não",null,null,"Diversificação e aposta em produtos complementares e em desenvolvimento (ex: Gastronomia e vinhos, Touring/ cultura/ património, Turismo de saúde, sénior/acessível)",null,"Produtos locais diferenciados "]
[null,null,3,"Encargos com Instalações ",null,"c)","Software standard ou desenvolvido especificamente para a atividade da empresa",null,null,null,null,"Articular a inovação ao nível do turismo com as atividades de investigação e desenvolvimento de domínios científicos e tecnológicos como os do mar, agroalimentar, energia, TIC e saúde.",null,"Animação Turística"]
[null,null,4,"Comunicações",null,"d)","Custos de conceção e registo associados à criação de novas marcas ou coleções",null,null,null,null,"Fomentar a I&D no domínio do Turismo",null,"Eventos internacionais com capacidade de atenuar a sazonalidade"]
[null,null,5,"Seguros",null,"e)","Custos iniciais associados à domiciliação de aplicações, adesão inicial a plataformas eletrónicas, subscrição inicial de aplicações em regimes de «software as a servisse», criação e publicação inicial de novos conteúdos eletrónicos, bem como a inclusão ou catalogação em diretórios ou motores de busca",null,null,null,null,null,null,"Património natural e cultural"]
[null,null,6,"Deslocações e Estadas ",null,"f)","Serviços de arquitetura e engenharia relacionados com a implementação do projeto",null,null,null,null,null,null,"Serviços e infraestruturas coletivas (com destaque para os associados à inovação e à internacionalização)"]
[null,null,7,"Estudos, Pareceres, Projetos e Consultoria ",null,"g)","Material circulante diretamente relacionado com o exercício da atividade em que seja imprescindível à execução da operação, sujeito a limitações em matéria de\nproporção do investimento total a definir nos avisos de\nabertura de candidaturas",null,null,null,"Mar","Qualificação e diferenciação dos segmentos tradicionais (ex: pesca, conservas, sal, construção e reparação naval)",". Pescas\n. Aquicultura\n. Transformação dos produtos do mar\n. Construção e reparação naval\n. Turismo náutico\n. Serviços e infraestruturas coletivas (com destaque para os associados à inovação e à internacionalização)\n. Outras atividades que se enquadrem na prioridade temática.\n. Turismo sol/mar (criação de produtos diferenciados)\n. Biotecnologia azul ou marinha\n. Salicultura\n. Internacionalização e capacitação das PME (com destaque para a economia digital e as TIC, a certificação de produtos, a criação de marcas e design, a distribuição e logística)","Outras atividades que se enquadrem na prioridade temática"]
[null,null,8,"Formação",null,"h)","Estudos, diagnósticos, auditorias, planos de marketing e projetos de arquitetura e de engenharia essenciais ao projeto de investimento sujeitos a limitações em matéria de proporção do investimento total a definir nos avisos de abertura de candidaturas",null,null,null,null,"Diversificação e aposta em segmentos de elevado valor acrescentado (ex: aquicultura, construção naval com novos materiais e intensificação tecnológica, serviços náuticos avançados)",null,"Animação turística assente em produtos locais"]
[null,null,9,"Seminários, Exposições e Similares",null,"i)","Obras de remodelação ou adaptação, desde que contratadas a terceiros não relacionados com o adquirente beneficiário dos apoios, indispensáveis à concretização do investimento sujeitas a limitações em matéria de proporção do investimento total a definir nos avisos de abertura de candidaturas",null,null,null,null,"Fomentar a I&D no domínio das Ciências do Mar visando a criação de conhecimento, bem como (i) a sua valorização nas atividades da economia do mar e (ii) uma melhor gestão dos recursos naturais associados ao mar.",null,"Capacitação das PME (com destaque para a presença na web, a economia digital e as TIC, a certificação de serviços, a criaçãode marcas e design, o marketing internacional)"]
[null,null,10,"Publicidade e Divulgação",null,"j)","Participação em feiras e exposição no estrangeiro sujeitas a limitações em matéria de proporção do investimento total a definir nos avisos de abertura de candidaturas",null,null,null,null,null,null,"Sustentabilidade (consumir e produzir de forma sustentável)"]
[null,null,11,"Assistência Técnica",null,"i)","Custos com o arrendamento de espaço, incluindo os serviços prestados pelas entidades organizadoras das feiras, nomeadamente os relativos aos consumos de água, eletricidade, comunicações, inserções em catálogo de feira e os serviços de tradução/intérprete",null,null,null,null,null,null,"Qualificação dos recursos humanos"]
[null,null,12,"Outros Serviços ",null,"ii)","Custos com a construção do stand, incluindo os serviços associados à conceção, construção e montagem de espaços de exposição, nomeadamente aluguer de equipamentos e mobiliário, transporte e manuseamento de\nmostruários, materiais e outros suportes promocionais",null,null,null,"Agroalimentar, Agro-transformação, floresta e Biotecnologia Verde","Continuidade e intensificação da modernização organizacional e tecnológica das produções em escala (ex: citrinos, frutos vermelhos), com um maior controlo a jusante, sobre a distribuição e comercialização",". Produção agroalimentar\n. Produção florestal\n. Indústria agroalimentar\n. Transformação da cortiça\n. Turismo rural e de natureza\n. Serviços e infraestruturas coletivas (com destaque para os associados à inovação e à internacionalização)\n. Outras atividades que se enquadrem na prioridade temática\n. Turismo “gastronomia e vinhos”\n. Biotecnologia\n. Internacionalização e capacitação das PME (com destaque para a economia digital e as TIC, a certificação de produtos, a criação de marcas e design, a distribuição e logística)","Pescas","Mar"]
[null,null,13,"Terrenos",null,"iii)","Custos de funcionamento do stand, incluindo os serviços de deslocação e alojamento dos representantes das empresas e outras despesas de representação, bem como a contratação de tradutores/intérpretes externos à organização das feiras.",null,null,null,null,"Valorização económica, através da tecnologia e de novos usos, de produções vegetais em que o Algarve apresenta qualidade (p. ex., cortiça) ou exclusividade (ex: alfarroba) ",null,"Aquicultura"]
[null,null,14,"Habitações",null,null,null,null,null,null,null,"Cruzar o agroalimentar e a floresta com oportunidades geradas pela procura turística (ex: produtos “gourmet”, turismo de natureza, rural e industrial na Serra Algarvia) ",null,"Transformação dos produtos do mar"]
[null,null,15,"Edifícios",null,null,null,null,null,null,null,"Fomentar a I&D no domínio do Agroalimentar ",null,"Construção e reparação naval"]
[null,null,16,"Construções diversas",null,null,null,null,null,null,null,null,null,"Turismo náutico"]
[null,null,17,"Melhoramentos Fundiários",null,null,null,null,null,null,null,null,null,"Serviços e infraestruturas coletivas (com destaque para os associados à inovação e à internacionalização)"]
[null,null,18,"Equipamento de Transporte",null,null,null,null,null,null,"TIC e Industrias Criativas e Culturais","Reforçar as competências em TIC, nomeadamente através de mais organização e mais recursos no interface universidade / industria",". Aplicações e serviços baseados em TIC\n.Tecnologias da produção baseadas em TIC\n. Aplicações e equipamentos para Smart cities\n. Indústrias criativas e multimédia\n. Serviços e infraestruturas coletivas (com destaque para os associados à inovação e à internacionalização)\n. Produção de conteúdos culturais e projetos virtuais na área cultural\n. Outras atividades que se enquadrem na prioridade temática","Outras atividades que se enquadrem na prioridade temática."]
[null,null,19,"Equipamento de informática",null,null,null,null,null,null,null,"Potenciar um cluster de TIC, desenvolvendo e alargando a base empresarial, apoiando o investimento empresarial e promovendo a articulação com a procura de proximidade gerada por todas as restantes prioridades temáticas",null,"Turismo sol/mar (criação de produtos diferenciados)"]
[null,null,20,"Software Informático",null,null,null,null,null,null,null,"Dar mais enfase a promoção de atividades culturais e criativas, para além do seu cruzamento com as TIC, robustecendo a oferta cultural e promovendo atividades empresariais no domínio da criatividade e dos serviços culturais ",null,"Biotecnologia azul ou marinha"]
[null,null,21,"Equipamento Administrativo",null,null,null,null,null,null,"Energias renováveis","Produção em larga escala de eletricidade com origem em fontes renováveis, uma vez reunidas condições de viabilidade económica",". Produção de energia solar, de energia eólica e através da biomassa\n. Eficiência energética nos vários setores de atividade e institucionais\n. Serviços e infraestruturas coletivas (com destaque para os associados à inovação e à internacionalização)\n. Apostas inovadoras no dominio da eficiência energetica\n. Outras atividades que se enquadrem na prioridade temática","Salicultura"]
[null,null,22,"Equipamento Básico",null,null,null,null,null,null,null,"Eficiência energética, incorporando produção desconcentrada de energia a partir de fontes renováveis (solar térmico e fotovoltaico), nos diferentes setores consumidores",null,"Internacionalização e capacitação das PME (com destaque para a economia digital e as TIC, a certificação de produtos, a criação de marcas e design, a distribuição e logística)"]
[null,null,23,"Ferramentas e Utensílios",null,null,null,null,null,null,null,"Fomento da I&D na área da energia, visando a criação de conhecimento ou o Aprofundamento de competências nas energias renováveis, bem como a transferência de tecnologia para o tecido económico ",null,"Produção agroalimentar","Agroalimentar"]
[null,null,24,"Investimentos Incorpóreos",null,null,null,null,null,null,null,null,null,"Produção florestal"]
[null,null,25,"Outras despesas ",null,null,null,null,null,null,"Saúde, Bem estar e Ciências da vida","Prioridade centrada no Turismo de Saúde e Bem-estar, articulada com o reforço do sistema de saúde, privado e público, que contribua para uma região vista como destino seguro quer em termos turísticos quer, em termos de cuidados de saúde",". Turismo de saúde e bem-estar\n. Desporto de alto rendimento\n. Serviços de saúde, de cuidados continuados e de monitorização de doentes crónicos\n. Serviços e infraestruturas coletivas (com destaque para os associados à inovação e à internacionalização)\n. Outras atividades que se enquadrem na prioridade temática","Indústria agroalimentar"]
[null,null,26,"Imprevistos ",null,null,null,null,null,null,null,"Fomento da I&D na área das ciências da vida, com focos nos subdomínios mais diretamente associados aos setores de aplicação a privilegiar",null,"Transformação da cortiça"]
[null,null,27,"Ajustamentos de preços (Revisão de Preços)",null,null,null,null,null,null,null,"Cruzamento das tecnologias da saúde com as TIC visando responder aos desafios societais relacionados com a saúde, o envelhecimento ativo e a monitorização, vigilância e assistência à distância.",null,"Turismo rural e de natureza"]
[null,null,null,null,null,null,null,null,null,null,null,null,null,"Serviços e infraestruturas coletivas (com destaque para os associados à inovação e à internacionalização)"]
[null,null,null,null,null,null,null,null,null,null,null,null,null,"Outras atividades que se enquadrem na prioridade temática"]
[null,null,null,null,null,null,null,null,null,null,null,null,null,"Turismo “gastronomia e vinhos”"]
[null,null,null,null,null,null,null,null,null,null,null,null,null,"Biotecnologia"]
[null,null,null,null,null,null,null,null,null,null,null,null,null,"Internacionalização e capacitação das PME (com destaque para a economia digital e as TIC, a certificação de produtos, a criação de marcas e design, a distribuição e logística)"]
[null,null,null,null,null,null,null,null,null,null,null,null,null,"Aplicações e serviços baseados em TIC","TIC"]
[null,null,null,null,null,null,null,null,null,null,null,null,null,"Tecnologias da produção baseadas em TIC"]
[null,null,null,null,null,null,null,null,null,null,null,null,null,"Aplicações e equipamentos para Smart cities"]
[null,null,null,null,null,null,null,null,null,null,null,null,null,"Indústrias criativas e multimédia"]
[null,null,null,null,null,null,null,null,null,null,null,null,null,"Serviços e infraestruturas coletivas (com destaque para os associados à inovação e à internacionalização)"]
[null,null,null,null,null,null,null,null,null,null,null,null,null,"Produção de conteúdos culturais e projetos virtuais na área cultural"]
[null,null,null,null,null,null,null,null,null,null,null,null,null,"Outras atividades que se enquadrem na prioridade temática"]
[null,null,null,null,null,null,null,null,null,null,null,null,null,"Produção de energia solar, de energia eólica e através da biomassa","Energia"]
[null,null,null,null,null,null,null,null,null,null,null,null,null,"Eficiência energética nos vários setores de atividade e institucionais"]
[null,null,null,null,null,null,null,null,null,null,null,null,null,"Serviços e infraestruturas coletivas (com destaque para os associados à inovação e à internacionalização)"]
[null,null,null,null,null,null,null,null,null,null,null,null,null,"Apostas inovadoras no dominio da eficiência energetica"]
[null,null,null,null,null,null,null,null,null,null,null,null,null,"Outras atividades que se enquadrem na prioridade temática"]
[null,null,null,null,null,null,null,null,null,null,null,null,null,"Turismo de saúde e bem-estar","Saúde"]
[null,null,null,null,null,null,null,null,null,null,null,null,null,"Desporto de alto rendimento"]
[null,null,null,null,null,null,null,null,null,null,null,null,null,"Serviços de saúde, de cuidados continuados e de monitorização de doentes crónicos"]
[null,null,null,null,null,null,null,null,null,null,null,null,null,"Serviços e infraestruturas coletivas (com destaque para os associados à inovação e à internacionalização)"]
[null,null,null,null,null,null,null,null,null,null,null,null,null,"Outras atividades que se enquadrem na prioridade temática"]

{"sheet":"Base de dados","index":5,"n_rows":2,"n_cols":25,"rows_kept":2,"cut":false,"hidden":true,"merged":[]}
["Empresa","Dimensão empresa","Data de inicio de atividade","Historico","Descição projeto","Enquadramento na estratégia",{"$f":"+CARACTERIZAÇÃO!B118","v":"N.º de postos de trabalhos antes da apresentação da candidatura (Pré-projeto)"},{"$f":"+CARACTERIZAÇÃO!C132","v":"N.º total de postos de trabalho a criar"},"A1","B1","B2","B3","Rácio D1","D1","D2","Dominio RIS 3 Regional","Linha de ação","Atividades","E","volume de negocios2016","volume de negocios2017","volume de negocios2018","volume de negocios2019","volume de negocios2020","volume de negocios2021"]
[{"$f":"+CARACTERIZAÇÃO!C5","v":0},{"$f":"+CARACTERIZAÇÃO!D7","v":0},{"$f":"+CARACTERIZAÇÃO!O7","v":"00:00:00"},{"$f":"+CARACTERIZAÇÃO!B15","v":0},{"$f":"+CARACTERIZAÇÃO!B52","v":0},{"$f":"+CARACTERIZAÇÃO!#REF!","v":{"$error":"#REF!"}},{"$f":"+CARACTERIZAÇÃO!J118","v":0},{"$f":"+CARACTERIZAÇÃO!L132","v":0},{"$f":"+CARACTERIZAÇÃO!B253","v":0},{"$f":"+CARACTERIZAÇÃO!B143","v":0},{"$f":"+CARACTERIZAÇÃO!B281","v":0},{"$f":"+CARACTERIZAÇÃO!#REF!","v":{"$error":"#REF!"}},{"$f":"+CARACTERIZAÇÃO!#REF!","v":{"$error":"#REF!"}},{"$f":"+CARACTERIZAÇÃO!B311","v":0},{"$f":"+CARACTERIZAÇÃO!B344","v":0},{"$f":"+CARACTERIZAÇÃO!#REF!&CARACTERIZAÇÃO!#REF!&CARACTERIZAÇÃO!#REF!&CARACTERIZAÇÃO!#REF!&CARACTERIZAÇÃO!#REF!&CARACTERIZAÇÃO!#REF!","v":{"$error":"#REF!"}},{"$f":"+CARACTERIZAÇÃO!#REF!&\";\"&CARACTERIZAÇÃO!#REF!&\";\"&CARACTERIZAÇÃO!#REF!&\";\"&CARACTERIZAÇÃO!#REF!&\";\"&CARACTERIZAÇÃO!#REF!&\";\"&CARACTERIZAÇÃO!#REF!","v":{"$error":"#REF!"}},{"$f":"+CARACTERIZAÇÃO!#REF!&\";\"&CARACTERIZAÇÃO!#REF!&\";\"&CARACTERIZAÇÃO!#REF!&\";\"&CARACTERIZAÇÃO!#REF!&\";\"&CARACTERIZAÇÃO!#REF!&\";\"&CARACTERIZAÇÃO!#REF!","v":{"$error":"#REF!"}},{"$f":"+CARACTERIZAÇÃO!#REF!","v":{"$error":"#REF!"}},{"$f":"+'DR e BALANÇO'!D121","v":0},{"$f":"+'DR e BALANÇO'!E121","v":0},{"$f":"+'DR e BALANÇO'!F121","v":0},{"$f":"+'DR e BALANÇO'!G121","v":0},{"$f":"+'DR e BALANÇO'!H121","v":0},{"$f":"+'DR e BALANÇO'!I121","v":0}]